bitfinex-derivatives/quotes_BNBF0:USTF0_20250715
["timestamp","ask_amount","ask_price","bid_price","bid_amount"]
[1752610373467,0.97576235,686.4,685.52,0.98100882]
[1752610374363,0.97576235,686.41,685.52,0.98100882]
[1752610375867,0.97576235,686.41,685.53,0.98100882]
[1752610377261,0.97576235,686.42,685.52,0.98100882]
[1752610377467,0.97576235,686.41,685.53,0.98100882]
[1752610379268,0.97576235,686.41,685.52,0.98100882]
[1752610379463,0.97576235,686.41,685.53,0.98100882]
[1752610380462,0.97576235,686.43,685.52,0.98100882]
[1752610380664,0.97576235,686.5,685.59,0.98100882]
[1752610380966,0.97576235,686.53,685.63,0.98100882]
[1752610381364,0.97576235,686.54,685.62,0.98100882]
[1752610382167,0.97576235,686.55,685.62,0.98100882]
[1752610382467,0.97576235,686.54,685.62,0.98100882]
[1752610383272,0.97576235,686.55,685.61,0.98100882]
[1752610383572,0.97576235,686.55,685.62,0.98100882]
[1752610384068,0.9748857,686.55,685.62,0.97847447]
[1752610384273,0.9748857,686.55,685.61,0.97847447]
[1752610384472,0.9748857,686.52,685.63,0.97847447]
[1752610385072,0.9748857,686.53,685.63,0.97847447]
[1752610385468,0.9748857,686.52,685.63,0.97847447]
[1752610385772,0.9748857,686.53,685.64,0.97847447]
[1752610385972,0.9748857,686.55,685.66,0.97847447]
[1752610386171,0.9748857,686.55,685.65,0.97847447]
[1752610387571,0.9748857,686.56,685.65,0.97847447]
[1752610388172,0.9748857,686.56,685.64,0.97847447]
[1752610388574,0.9748857,686.56,685.65,0.97847447]
[1752610389070,0.9748857,686.57,685.64,0.97847447]
[1752610389471,0.9748857,686.56,685.64,0.97847447]
[1752610390274,0.9748857,686.57,685.64,0.97847447]
[1752610391472,0.9748857,686.51,685.68,0.97847447]
[1752610392276,0.9748857,686.52,685.68,0.97847447]
[1752610392478,0.9748857,686.59,685.64,0.97847447]
[1752610393474,0.9748857,686.67,685.71,0.97847447]
[1752610393778,0.9748857,686.68,685.71,0.97847447]
[1752610394078,0.9748857,686.68,685.7,0.97847447]
[1752610394278,0.9748857,686.64,685.66,0.97847447]
[1752610394480,0.9748857,686.67,685.69,0.97847447]
[1752610395077,0.9748857,686.67,685.68,0.97847447]
[1752610396178,0.9748857,686.68,685.68,0.97847447]
[1752610397176,0.9748857,686.68,685.67,0.97847447]
[1752610398077,0.9748857,686.69,685.67,0.97847447]
[1752610398383,0.9748857,686.68,685.67,0.97847447]
[1752610399082,0.9748857,686.63,685.71,0.97847447]
[1752610400479,0.9748857,686.62,685.71,0.97847447]
[1752610400778,0.9748857,686.63,685.71,0.97847447]
[1752610400983,0.97290855,686.63,685.71,0.97642639]
[1752610403081,0.97290855,686.69,685.65,0.97642639]
[1752610403278,0.97290855,686.66,685.62,0.97642639]
[1752610403478,0.97290855,686.65,685.62,0.97642639]
[1752610404281,0.97290855,686.66,685.61,0.97642639]
[1752610404481,0.97290855,686.65,685.61,0.97642639]
[1752610404685,0.97290855,686.6,685.64,0.97642639]
[1752610405383,0.97290855,686.59,685.64,0.97642639]
[1752610405581,0.97290855,686.56,685.6,0.97642639]
[1752610405788,0.97290855,686.56,685.61,0.97642639]
[1752610406285,0.97290855,686.53,685.59,0.97642639]
[1752610407283,0.97290855,686.53,685.6,0.97642639]
[1752610408388,0.97290855,686.52,685.6,0.97642639]
[1752610409287,0.97290855,686.52,685.61,0.97642639]
[1752610409486,0.97290855,686.51,685.61,0.97642639]
[1752610410586,0.97290855,686.54,685.64,0.97642639]
[1752610411690,0.97290855,686.54,685.34,1.9591129]
[1752610411691,0.97290855,686.52,685.65,0.97642639]
[1752610413991,0.97290855,686.5,685.66,0.97642639]
[1752610414496,0.97290855,686.48,685.68,0.97642639]
[1752610414891,0.97290855,686.47,685.68,0.97642639]
[1752610415192,0.97290855,686.47,685.69,0.97642639]
[1752610416293,0.97290855,686.46,685.69,0.97642639]
[1752610417589,0.97290855,686.46,685.7,0.97642639]
[1752610418295,0.97290855,686.45,685.71,0.97642639]
[1752610420395,0.97290855,686.44,685.72,0.97642639]
[1752610422096,0.97290855,686.43,685.72,0.97642639]
[1752610422397,0.97290855,686.43,685.73,0.97642639]
[1752610423494,0.97290855,686.42,685.74,0.97642639]
[1752610424393,0.97290855,686.41,685.74,0.97642639]
[1752610424799,0.97290855,686.42,685.74,0.97642639]
[1752610425497,0.97290855,686.41,685.75,0.97642639]
[1752610426499,0.97290855,686.4,685.76,0.97642639]
[1752610426700,0.97290855,686.4,685.75,0.97642639]
[1752610427202,0.97290855,686.39,685.75,0.97642639]
[1752610427400,0.97290855,686.39,685.76,0.97642639]
[1752610427906,0.97290855,686.38,685.75,0.97642639]
[1752610428204,0.97290855,686.37,685.75,0.97642639]
[1752610428400,0.97290855,686.36,685.76,0.97642639]
[1752610429301,0.97290855,686.35,685.77,0.97642639]
[1752610430102,0.97290855,686.34,685.77,0.97642639]
[1752610430306,0.97290855,686.34,685.78,0.97642639]
[1752610431501,0.97290855,686.33,685.79,0.97642639]
[1752610432206,0.97290855,686.32,685.79,0.97642639]
[1752610432502,0.97290855,686.32,685.8,0.97642639]
[1752610433504,0.97290855,686.31,685.8,0.97642639]
[1752610434407,0.97290855,686.31,685.69,1.3060752]
[1752610434408,0.97290855,686.31,685.81,0.97642639]
[1752610434608,0.97290855,686.3,685.81,0.97642639]
[1752610435407,0.97290855,686.3,685.59,1.9591129]
[1752610435408,0.97290855,686.3,685.82,0.97642639]
[1752610436004,0.97290855,686.29,685.82,0.97642639]
[1752610436203,0.97290855,686.29,685.81,0.97642639]
[1752610436402,0.97290855,686.29,685.82,0.97642639]
[1752610437305,0.97290855,686.28,685.82,0.97642639]
[1752610438308,0.97290855,686.28,685.83,0.97642639]
[1752610438508,0.97290855,686.29,685.82,0.97642639]
[1752610439209,0.97290855,686.29,685.83,0.97642639]
[1752610440105,0.97290855,686.3,685.84,0.97642639]
[1752610441608,0.97290855,686.3,685.83,0.97642639]
[1752610442810,0.97290855,686.32,685.82,0.97642639]
[1752610444011,0.97290855,686.31,685.82,0.97642639]
[1752610444208,0.97290855,686.33,685.84,0.97642639]
[1752610444710,0.97290855,686.36,685.87,0.97642639]
[1752610444909,0.97290855,686.37,685.86,0.97642639]
[1752610445308,0.97290855,686.4,685.84,0.97642639]
[1752610445509,0.97290855,686.4,685.83,0.97642639]
[1752610448716,0.97290855,686.46,685.89,0.97642639]
[1752610449515,0.97290855,686.47,685.88,0.97642639]
[1752610449910,0.97290855,686.45,685.86,0.97642639]
[1752610450111,0.97290855,686.32,685.73,0.97642639]
[1752610450310,0.97290855,686.32,685.72,0.97642639]
[1752610450514,0.97290855,686.31,685.72,0.97642639]
[1752610451414,0.97290855,686.3,685.72,0.97642639]
[1752610451818,0.97290855,686.32,685.7,0.97642639]
[1752610452014,0.97290855,686.3,685.68,0.97642639]
[1752610452417,0.97290855,686.25,685.63,0.97642639]
[1752610453416,0.97290855,686.26,685.63,0.97642639]
[1752610454017,0.97290855,686.42,685.78,0.97642639]
[1752610454321,0.97290855,686.39,685.76,0.97642639]
[1752610454918,0.97290855,686.38,685.76,0.97642639]
[1752610456021,0.25354452,686.77,684.78,3.2651881]
[1752610456022,0.97290855,686.36,685.75,0.97642639]
[1752610456619,0.97290855,686.37,685.75,0.97642639]
[1752610457117,0.97290855,686.36,685.75,0.97642639]
[1752610458119,0.97290855,686.36,685.76,0.97642639]
[1752610460122,0.97290855,686.35,685.76,0.97642639]
[1752610460318,0.97290855,686.36,685.76,0.97642639]
[1752610461625,0.97290855,686.34,685.77,0.97642639]
[1752610461821,0.97290855,686.32,685.79,0.97642639]
[1752610462221,0.97290855,686.3,685.8,0.97642639]
[1752610463224,0.97290855,686.29,685.81,0.97642639]
[1752610463827,0.97290855,686.3,685.8,0.97642639]
[1752610465427,0.97290855,686.3,685.81,0.97642639]
[1752610465629,0.97290855,686.29,685.81,0.97642639]
[1752610467735,0.97290855,686.28,685.81,0.97642639]
[1752610468633,0.97290855,686.3,685.8,0.97642639]
[1752610470332,0.97290855,686.32,685.79,0.97642639]
[1752610470534,0.97290855,686.34,685.78,0.97642639]
[1752610470837,0.97290855,686.27,685.71,0.97642639]
[1752610471034,0.97290855,686.26,685.71,0.97642639]
[1752610471236,0.97290855,686.27,685.71,0.97642639]
[1752610471434,0.97290855,686.28,685.72,0.97642639]
[1752610471637,0.97290855,686.29,685.73,0.97642639]
[1752610472338,0.97290855,686.3,685.74,0.97642639]
[1752610472536,0.97290855,686.33,685.77,0.97642639]
[1752610473839,0.97290855,686.32,685.76,0.97642639]
[1752610475438,0.97290855,686.33,685.77,0.97642639]
[1752610475745,0.97290855,686.27,685.81,0.97642639]
[1752610476638,0.97290855,686.27,685.8,0.97642639]
[1752610476843,0.97290855,686.27,685.81,0.97642639]
[1752610477642,0.97290855,686.26,685.81,0.97642639]
[1752610477839,0.97290855,686.27,685.81,0.97642639]
[1752610479045,0.97290855,686.27,685.8,0.97642639]
[1752610480446,0.97290855,686.27,685.81,0.97642639]
[1752610480746,0.97290855,686.28,685.8,0.97642639]
[1752610481545,0.97290855,686.37,685.75,0.97642639]
[1752610483549,0.97290855,686.37,685.57,1.3060752]
[1752610483550,0.97290855,686.39,685.77,0.97642639]
[1752610483749,0.97290855,686.43,685.8,0.97642639]
[1752610484847,0.97290855,686.44,685.82,0.97642639]
[1752610485244,0.97290855,686.45,685.82,0.97642639]
[1752610485545,0.97290855,686.55,685.92,0.97642639]
[1752610486047,0.97290855,686.55,685.74,1.3060752]
[1752610486048,0.97290855,686.48,685.96,0.97642639]
[1752610486342,0.97290855,686.48,685.68,1.9591129]
[1752610486343,0.97290855,686.49,685.95,0.97642639]
[1752610487245,0.97290855,686.5,685.94,0.97642639]
[1752610489249,1.2925991,686.65,685.09,3.2651881]
[1752610489250,0.97290855,686.51,685.93,0.97642639]
[1752610490349,0.97290855,686.52,685.92,0.97642639]
[1752610495648,0.97290855,686.51,685.92,0.97642639]
[1752610495952,0.97290855,686.51,685.67,1.9591129]
[1752610495953,0.97290855,686.49,685.94,0.97642639]
[1752610496251,0.97290855,686.49,685.93,0.97642639]
[1752610496449,0.97290855,686.47,685.92,0.97642639]
[1752610496849,0.97290855,686.47,685.82,0.97642639]
[1752610498454,0.97290855,686.47,685.81,0.97642639]
[1752610498654,0.97290855,686.45,685.79,0.97642639]
[1752610498854,1.2925991,686.59,685.79,0.97642639]
[1752610498855,0.97290855,686.44,685.79,0.97642639]
[1752610499055,0.97290855,686.36,685.71,0.97642639]
[1752610501454,0.97290855,686.38,685.73,0.97642639]
[1752610502256,0.25354452,686.77,685.76,0.97642639]
[1752610502257,0.97290855,686.33,685.76,0.97642639]
[1752610502952,0.97290855,686.33,685.77,0.97642639]
[1752610503259,0.97290855,686.33,685.65,1.3060752]
[1752610503260,0.97290855,686.33,685.76,0.97642639]
[1752610504052,0.97290855,686.35,685.78,0.97642639]
[1752610504256,0.97290855,686.35,685.77,0.97642639]
[1752610504452,0.97290855,686.35,685.78,0.97642639]
[1752610506357,0.97290855,686.35,685.77,0.97642639]
[1752610506653,0.97290855,686.36,685.78,0.97642639]
[1752610507154,0.97290855,686.4,685.82,0.97642639]
[1752610507354,0.97290855,686.41,685.82,0.97642639]
[1752610507656,0.97290855,686.48,685.79,0.97642639]
[1752610507859,0.97290855,686.6,685.76,0.97642639]
[1752610508654,0.25354452,686.77,685.76,0.97642639]
[1752610508855,0.25354452,686.77,685.54,1.3060752]
[1752610509359,0.97711319,686.59,685.89,0.9805127]
[1752610510654,0.97711319,686.59,685.73,1.3060752]
[1752610511059,1.2925991,686.75,685.73,1.3060752]
[1752610511360,0.97709429,686.63,685.92,0.98045197]
[1752610513757,0.97709429,686.62,685.91,0.98045197]
[1752610514461,0.97709429,686.62,685.9,0.98045197]
[1752610515760,0.97709429,686.61,685.91,0.98045197]
[1752610517362,0.97709429,686.62,685.9,0.98045197]
[1752610518961,0.97709429,686.61,685.91,0.98045197]
[1752610520864,0.97709429,686.6,685.9,0.98045197]
[1752610525267,0.97709429,686.6,685.76,1.3060752]
[1752610525268,0.97709429,686.64,685.88,0.98045197]
[1752610525465,0.97709429,686.64,685.87,0.98045197]
[1752610525666,0.97709429,686.63,685.87,0.98045197]
[1752610528071,0.97709429,686.62,685.87,0.98045197]
[1752610531270,0.97709429,686.61,685.87,0.98045197]
[1752610533269,0.97709429,686.61,685.88,0.98045197]
[1752610533473,0.97709429,686.56,685.83,0.98045197]
[1752610533673,0.97709429,686.52,685.85,0.98045197]
[1752610533969,0.97709429,686.51,685.85,0.98045197]
[1752610534372,0.97709429,686.5,685.85,0.98045197]
[1752610534574,0.97709429,686.41,685.76,0.98045197]
[1752610535175,0.97709429,686.31,685.66,0.98045197]
[1752610535382,0.97709429,686.32,685.65,0.98045197]
[1752610536785,0.97709429,686.33,685.65,0.98045197]
[1752610537285,0.97709429,686.32,685.65,0.98045197]
[1752610537484,0.97709429,686.33,685.64,0.98045197]
[1752610537685,0.97709429,686.33,685.65,0.98045197]
[1752610538285,0.97709429,686.33,685.64,0.98045197]
[1752610540488,0.97709429,686.34,685.64,0.98045197]
[1752610540785,0.97556224,686.32,685.65,0.97987849]
[1752610541385,0.97556224,686.34,685.62,0.97987849]
[1752610541886,0.97556224,686.34,685.63,0.97987849]
[1752610542089,0.97556224,686.34,685.56,0.97987849]
[1752610542386,1.9388987,686.68,685.56,0.97987849]
[1752610542387,0.97556224,686.35,685.56,0.97987849]
[1752610542887,0.97556224,686.32,685.52,0.97987849]
[1752610544392,0.97556224,686.32,685.51,0.97987849]
[1752610544588,0.97556224,686.35,685.5,0.97987849]
[1752610545291,0.97556224,686.35,685.49,0.97987849]
[1752610545888,0.97556224,686.35,685.5,0.97987849]
[1752610546487,0.97556224,686.36,685.49,0.97987849]
[1752610547293,0.97556224,686.37,685.49,0.97987849]
[1752610547789,0.97556224,686.37,685.48,0.97987849]
[1752610547989,0.97556224,686.33,685.51,0.97987849]
[1752610548190,0.97556224,686.3,685.53,0.97987849]
[1752610550496,0.97556224,686.31,685.52,0.97987849]
[1752610550693,0.97556224,686.31,685.53,0.97987849]
[1752610551295,0.97556224,686.31,685.52,0.97987849]
[1752610551792,0.97556224,686.31,685.53,0.97987849]
[1752610552398,0.97556224,686.31,685.52,0.97987849]
[1752610552592,0.97556224,686.31,685.54,0.97987849]
[1752610553091,0.97556224,686.31,685.53,0.97987849]
[1752610553295,1.2925991,686.44,685.53,0.97987849]
[1752610553296,0.97556224,686.32,685.53,0.97987849]
[1752610553696,0.97556224,686.31,685.53,0.97987849]
[1752610554394,0.97556224,686.32,685.53,0.97987849]
[1752610554994,0.97556224,686.35,685.56,0.97987849]
[1752610556292,0.97556224,686.35,685.55,0.97987849]
[1752610558302,0.97556224,686.36,685.56,0.97987849]
[1752610558802,0.97556224,686.37,685.55,0.97987849]
[1752610559297,0.97556224,686.38,685.55,0.97987849]
[1752610559597,0.97556224,686.37,685.55,0.97987849]
[1752610560301,0.97556224,686.42,685.59,0.97987849]
[1752610561002,0.97556224,686.46,685.63,0.97987849]
[1752610563102,0.97556224,686.45,685.64,0.97987849]
[1752610563502,0.97556224,686.44,685.65,0.97987849]
[1752610565004,0.97556224,686.44,685.64,0.97987849]
[1752610566102,0.97556224,686.45,685.65,0.97987849]
[1752610566303,0.97556224,686.46,685.65,0.97987849]
[1752610566503,0.97556224,686.46,685.39,1.9591129]
[1752610566504,0.97556224,686.47,685.64,0.97987849]
[1752610566701,0.97556224,686.49,685.65,0.97987849]
[1752610566902,0.97556224,686.49,685.66,0.97987849]
[1752610567303,0.97556224,686.52,685.69,0.97987849]
[1752610568509,0.97556224,686.52,685.7,0.97987849]
[1752610571208,0.97556224,686.53,685.69,0.97987849]
[1752610572013,0.97556224,686.52,685.69,0.97987849]
[1752610572409,0.97556224,686.52,685.7,0.97987849]
[1752610573412,0.97556224,686.51,685.7,0.97987849]
[1752610573616,1.2925991,686.65,685.56,1.3060752]
[1752610573811,0.97423748,686.51,685.7,0.97801289]
[1752610575615,0.97423748,686.51,685.71,0.97801289]
[1752610575811,0.97423748,686.52,685.72,0.97801289]
[1752610576015,0.97423748,686.52,685.73,0.97801289]
[1752610576211,0.25354452,686.77,685.77,0.97801289]
[1752610576212,0.97423748,686.53,685.77,0.97801289]
[1752610576516,0.97423748,686.57,685.8,0.97801289]
[1752610577316,0.97423748,686.56,685.8,0.97801289]
[1752610577516,0.97423748,686.56,685.81,0.97801289]
[1752610578717,0.97423748,686.57,685.8,0.97801289]
[1752610580213,0.97423748,686.58,685.79,0.97801289]
[1752610583317,0.97423748,686.57,685.8,0.97801289]
[1752610583520,0.97423748,686.58,685.79,0.97801289]
[1752610584125,0.97423748,686.58,685.8,0.97801289]
[1752610584621,0.97423748,686.58,684.94,3.51880376]
[1752610584622,0.97423748,686.6,685.82,0.97801289]
[1752610585321,0.97423748,686.59,685.82,0.97801289]
[1752610585522,0.97423748,686.6,685.82,0.97801289]
[1752610586022,0.97423748,686.59,685.82,0.97801289]
[1752610586521,0.97423748,686.59,685.83,0.97801289]
[1752610587321,0.97423748,686.58,685.83,0.97801289]
[1752610587519,0.97423748,686.59,685.82,0.97801289]
[1752610587724,0.97423748,686.6,685.83,0.97801289]
[1752610588425,0.97423748,686.62,685.84,0.97801289]
[1752610588620,0.97423748,686.64,685.84,0.97801289]
[1752610588825,0.97423748,686.67,685.86,0.97801289]
[1752610589124,0.97423748,686.77,685.96,0.97801289]
[1752610589322,0.97423748,686.77,685.97,0.97801289]
[1752610589526,0.97423748,686.78,685.96,0.97801289]
[1752610589724,0.97423748,686.81,685.99,0.97801289]
[1752610590323,0.25349927,686.87,684.94,0.25361566]
[1752610590324,0.97423748,686.82,685.98,0.97801289]
[1752610591329,0.97423748,686.83,685.97,0.97801289]
[1752610592333,0.97423748,686.83,685.98,0.97801289]
[1752610592528,0.97423748,686.84,685.97,0.97801289]
[1752610593033,0.97423748,686.84,685.96,0.97801289]
[1752610593733,0.97423748,686.83,685.97,0.97801289]
[1752610594232,0.97454705,686.83,685.97,0.97748391]
[1752610594433,0.97454705,686.84,685.96,0.97748391]
[1752610594928,0.97454705,686.84,685.81,1.3033118]
[1752610594929,1.22804632,686.87,685.95,0.97748391]
[1752610595429,1.22804632,686.87,685.94,0.97748391]
[1752610596331,0.25349927,686.87,685.94,0.97748391]
[1752610596633,0.25349927,686.87,685.93,0.97748391]
[1752610596830,1.22804632,686.87,685.94,0.97748391]
[1752610598533,0.97454705,686.86,685.94,0.97748391]
[1752610598737,0.97454705,686.86,685.95,0.97748391]
[1752610599433,0.97454705,686.86,685.94,0.97748391]
[1752610600233,1.22804632,686.87,685.94,0.97748391]
[1752610601235,0.25349927,686.87,685.93,0.97748391]
[1752610602536,0.25349927,686.87,685.92,0.97748391]
[1752610603536,0.25349927,686.87,685.91,0.97748391]
[1752610604040,0.25349927,686.87,685.93,0.97748391]
[1752610604533,0.25349927,686.87,685.92,0.97748391]
[1752610604836,0.97454705,686.89,685.92,0.97748391]
[1752610605036,0.97454705,686.9,685.93,0.97748391]
[1752610605236,0.97454705,686.92,685.95,0.97748391]
[1752610605437,0.97454705,686.93,685.95,0.97748391]
[1752610605741,0.97454705,686.92,685.95,0.97748391]
[1752610606439,0.97454705,686.93,685.95,0.97748391]
[1752610607237,0.97454705,686.92,685.95,0.97748391]
[1752610609342,0.97454705,686.91,685.95,0.97748391]
[1752610609540,0.97454705,686.92,685.95,0.97748391]
[1752610610445,0.97454705,686.91,685.95,0.97748391]
[1752610611146,0.97454705,686.93,685.94,0.97748391]
[1752610611445,0.97454705,686.92,685.95,0.97748391]
[1752610612944,0.97454705,686.91,685.95,0.97748391]
[1752610613345,0.97454705,686.89,685.96,0.97748391]
[1752610613547,0.97454705,686.93,685.94,0.97748391]
[1752610613844,0.97454705,686.93,685.92,0.97748391]
[1752610614147,0.97454705,686.81,685.83,0.97748391]
[1752610614343,0.97454705,686.77,685.81,0.97748391]
[1752610614745,0.25345404,686.95,684.94,0.25361566]
[1752610614746,0.97454705,686.72,685.8,0.97748391]
[1752610614942,0.97454705,686.73,685.78,0.97748391]
[1752610615242,0.97454705,686.73,685.79,0.97748391]
[1752610615948,0.97454705,686.69,685.75,0.97748391]
[1752610616646,0.97454705,686.69,685.76,0.97748391]
[1752610617348,0.97454705,686.68,685.76,0.97748391]
[1752610617548,0.97454705,686.69,685.76,0.97748391]
[1752610618348,0.97454705,686.69,685.6,1.3033118]
[1752610618349,0.97454705,686.69,685.77,0.97748391]
[1752610619451,0.25345404,686.95,684.94,0.25361566]
[1752610619452,0.97454705,686.68,685.78,0.97748391]
[1752610622053,0.97454705,686.69,685.79,0.97748391]
[1752610622552,0.97454705,686.68,685.79,0.97748391]
[1752610623258,0.97454705,686.68,685.8,0.97748391]
[1752610624361,0.97454705,686.67,685.8,0.97748391]
[1752610624860,0.97454705,686.65,685.82,0.97748391]
[1752610625462,0.97454705,686.64,685.82,0.97748391]
[1752610625962,0.97454705,686.65,685.82,0.97748391]
[1752610626167,0.97454705,686.64,685.82,0.97748391]
[1752610626367,0.97454705,686.63,685.83,0.97748391]
[1752610627468,0.97454705,686.62,685.83,0.97748391]
[1752610627668,0.97454705,686.61,685.84,0.97748391]
[1752610628367,0.97454705,686.61,685.85,0.97748391]
[1752610628564,0.97454705,686.59,685.86,0.97748391]
[1752610630470,0.97454705,686.58,685.87,0.97748391]
[1752610631272,0.97454705,686.56,685.88,0.97748391]
[1752610631971,0.97454705,686.7,685.79,0.97748391]
[1752610632167,0.97454705,686.71,685.76,0.97748391]
[1752610632369,0.97454705,686.61,685.83,0.97748391]
[1752610632568,0.97454705,686.6,685.83,0.97748391]
[1752610633068,0.97454705,686.58,685.84,0.97748391]
[1752610633372,0.97454705,686.57,685.84,0.97748391]
[1752610633573,0.97454705,686.56,685.84,0.97748391]
[1752610634373,0.97454705,686.55,685.85,0.97748391]
[1752610634571,0.97454705,686.55,685.84,0.97748391]
[1752610634776,0.97454705,686.54,685.85,0.97748391]
[1752610635775,0.97454705,686.55,685.85,0.97748391]
[1752610636071,0.25345404,686.95,685.84,0.97748391]
[1752610636072,0.97454705,686.56,685.84,0.97748391]
[1752610636374,0.97454705,686.54,685.84,0.97748391]
[1752610636774,0.97454705,686.53,685.83,0.97748391]
[1752610637071,0.97454705,686.53,685.84,0.97748391]
[1752610637270,0.97454705,686.54,685.84,0.97748391]
[1752610637474,0.97454705,686.53,685.83,0.97748391]
[1752610639376,0.97454705,686.51,685.84,0.97748391]
[1752610640080,0.97454705,686.5,685.83,0.97748391]
[1752610640276,0.97454705,686.32,685.68,0.97748391]
[1752610640476,0.97454705,686.41,685.58,0.97748391]
[1752610640672,1.9388987,686.76,684.94,0.25361566]
[1752610640673,0.97454705,686.39,685.56,0.97748391]
[1752610640873,0.97454705,686.39,685.57,0.97748391]
[1752610641377,0.97454705,686.4,685.56,0.97748391]
[1752610642077,0.97454705,686.44,685.53,0.97748391]
[1752610642377,0.97454705,686.42,685.55,0.97748391]
[1752610643178,0.97454705,686.41,685.55,0.97748391]
[1752610643375,0.25345404,686.95,685.53,0.97748391]
[1752610643376,0.97454705,686.43,685.53,0.97748391]
[1752610644174,0.97454705,686.35,685.49,0.97748391]
[1752610644378,0.97454705,686.35,685.42,0.97748391]
[1752610644579,0.97454705,686.32,685.39,0.97748391]
[1752610644779,0.25345404,686.95,684.94,0.25361566]
[1752610644780,0.97454705,686.28,685.34,0.97748391]
[1752610645079,0.97454705,686.25,685.32,0.97748391]
[1752610645377,0.97454705,686.23,685.25,0.97748391]
[1752610645676,0.97454705,686.21,685.23,0.97748391]
[1752610645980,0.97454705,686.15,685.28,0.97748391]
[1752610646474,1.299396,686.29,684.94,0.25361566]
[1752610646475,0.97454705,686.17,685.25,0.97748391]
[1752610646676,0.97454705,686.18,685.25,0.97748391]
[1752610647280,0.97454705,686.22,685.22,0.97748391]
[1752610647576,0.97454705,686.21,685.2,0.97748391]
[1752610647880,0.97454705,686.19,685.19,0.97748391]
[1752610648076,0.97454705,686.2,685.19,0.97748391]
[1752610648275,0.97454705,686.23,685.15,0.97748391]
[1752610648475,0.97454705,686.2,685.12,0.97748391]
[1752610649080,0.97454705,686.15,685.06,0.97748391]
[1752610649276,0.97454705,686.18,685.04,0.97748391]
[1752610649476,0.97454705,686.19,685.03,0.97748391]
[1752610649676,0.97454705,686.23,685.0,0.97748391]
[1752610649979,0.25345404,686.95,684.98,0.97748391]
[1752610649980,0.97454705,686.21,684.98,0.97748391]
[1752610650178,0.97454705,686.19,684.96,0.97748391]
[1752610650382,0.97454705,686.21,684.94,0.25361566]
[1752610650881,0.25345404,686.95,684.99,0.97748391]
[1752610650882,0.97454705,686.3,684.99,0.97748391]
[1752610652082,1.9388987,686.7,684.94,0.25361566]
[1752610652277,0.25345404,686.95,684.94,0.25361566]
[1752610652881,0.96852171,686.08,684.94,0.25361566]
[1752610653283,0.96852171,686.11,684.94,0.25361566]
[1752610654179,0.96852171,686.1,684.94,0.25361566]
[1752610654383,0.96852171,686.13,684.94,0.25361566]
[1752610654679,0.96852171,686.12,684.94,0.25361566]
[1752610654884,0.96852171,686.29,684.94,0.25361566]
[1752610655083,0.25345404,686.95,684.94,0.25361566]
[1752610655084,0.96852171,686.08,684.94,0.25361566]
[1752610655283,0.96852171,686.05,684.94,0.25361566]
[1752610655485,0.96852171,686.08,684.94,0.25361566]
[1752610655684,0.96852171,686.15,684.94,0.25361566]
[1752610655984,0.96852171,686.14,684.94,0.25361566]
[1752610656380,0.25345404,686.95,684.94,0.25361566]
[1752610656381,0.96852171,686.16,684.94,0.25361566]
[1752610656881,0.96852171,686.05,684.94,0.25361566]
[1752610657283,0.96852171,686.07,684.94,0.25361566]
[1752610657786,0.96852171,686.02,684.94,0.25361566]
[1752610657980,0.96852171,685.98,684.94,0.25361566]
[1752610658183,0.96852171,686.0,684.94,0.25361566]
[1752610658482,0.96852171,685.99,684.94,0.25361566]
[1752610658686,0.96852171,685.92,684.94,0.25361566]
[1752610659182,0.96852171,685.9,684.94,0.25361566]
[1752610659482,0.96852171,685.92,684.31,0.9740605]
[1752610659683,0.96852171,686.03,684.23,0.9740605]
[1752610659887,0.96852171,685.99,684.83,0.25396084]
[1752610660185,0.96852171,686.0,684.23,0.9740605]
[1752610660388,0.96852171,686.0,684.68,0.2539803]
[1752610660586,0.96852171,685.72,684.68,0.2539803]
[1752610660988,0.96852171,685.7,684.68,0.2539803]
[1752610661188,0.96852171,685.75,684.68,0.2539803]
[1752610661388,0.96852171,685.82,684.68,0.2539803]
[1752610661686,0.96852171,685.85,684.68,0.2539803]
[1752610661885,0.96852171,685.82,684.68,0.2539803]
[1752610662086,0.96852171,685.91,684.68,0.2539803]
[1752610662284,3.2284057,686.92,684.68,0.2539803]
[1752610662285,0.96852171,685.99,684.68,0.2539803]
[1752610662488,0.96852171,685.92,684.68,0.2539803]
[1752610662891,0.96852171,685.93,684.68,0.2539803]
[1752610663294,0.96852171,685.94,684.68,0.2539803]
[1752610663791,0.96852171,685.93,684.68,0.2539803]
[1752610663990,0.96852171,685.89,684.68,0.2539803]
[1752610664189,0.96852171,685.96,684.68,0.2539803]
[1752610664393,0.96852171,685.98,684.68,0.2539803]
[1752610664591,0.96852171,685.88,684.68,0.2539803]
[1752610664993,0.96852171,685.85,684.68,0.2539803]
[1752610665193,0.96852171,685.87,684.68,0.2539803]
[1752610665597,0.96852171,685.83,684.68,0.2539803]
[1752610665996,0.96852171,685.82,684.68,0.2539803]
[1752610666195,0.96852171,685.81,684.68,0.2539803]
[1752610666493,0.96852171,685.84,683.81,0.9740605]
[1752610666691,0.96852171,685.84,684.6,0.25405818]
[1752610666892,0.96852171,685.84,683.81,0.9740605]
[1752610667193,0.96852171,685.84,684.61,0.25405169]
[1752610667396,0.96852171,685.85,683.79,0.9740605]
[1752610667597,0.96852171,685.85,684.62,0.25405169]